bitfinex/quotes_ETHUSD_20241217
["timestamp","ask_amount","ask_price","bid_price","bid_amount"]
[1734466741477,3.0,3927.8,3926.9,0.55]
[1734466742621,4.05456411,3928.4,3927.5,0.55]
[1734466742777,1.58184616,3928.6,3927.7,0.55]
[1734466742778,1.05456411,3928.6,3927.7,0.55]
[1734466742979,1.81406411,3928.8,3927.7,0.55]
[1734466743215,2.54543,3928.6,3927.9,0.55]
[1734466744191,3.0,3928.5,3927.9,0.55]
[1734466744648,2.54559,3928.4,3927.9,0.55]
[1734466744908,2.54563,3928.3,3927.9,0.55]
[1734466745221,0.12688359,3928.2,3927.9,0.55]
[1734466748205,0.12688359,3928.2,3927.9,0.714473]
[1734466748679,0.12688359,3928.2,3927.9,0.814473]
[1734466751093,0.12380703,3928.2,3927.9,0.814473]
[1734466751328,0.12380703,3928.2,3927.9,0.65]
[1734466752985,0.12380703,3928.2,3927.9,0.1]
[1734466753185,4.48731033,3928.0,3927.9,0.1]
[1734466753386,7.48731033,3928.0,3927.9,0.1]
[1734466753884,8.24681033,3928.0,3927.9,0.1]
[1734466754101,10.6566442,3928.0,3927.9,0.1]
[1734466754301,9.60208009,3928.0,3927.9,0.1]
[1734466754784,10.6566442,3928.0,3927.9,0.1]
[1734466754991,9.60208009,3928.0,3927.9,0.1]
[1734466755624,11.18541751,3928.0,3927.9,0.1]
[1734466755813,11.18545851,3928.0,3927.9,0.1]
[1734466756632,2.54582,3928.0,3927.9,0.1]
[1734466756924,1.81507262,3928.4,3927.9,0.1]
[1734466757426,2.54582,3928.0,3927.9,0.1]
[1734466757599,2.67204199,3928.2,3927.9,0.1]
[1734466758900,0.12635199,3928.2,3927.9,0.1]
[1734466760625,0.12635199,3928.2,3928.0,0.8043]
[1734466764403,0.12635199,3928.2,3928.0,0.9043]
[1734466770948,1.85987262,3928.5,3928.0,0.9043]
[1734466771150,1.05557262,3928.6,3928.1,0.55]
[1734466771441,0.12828698,3928.8,3928.5,0.55]
[1734466776833,1.05557262,3929.0,3928.5,0.55]
[1734466777152,0.7795,3929.1,3928.5,0.55]
[1734466777153,1.83507262,3929.1,3928.5,0.55]
[1734466777350,1.05557262,3929.0,3928.5,0.55]
[1734466777645,4.38018262,3929.1,3928.5,0.55]
[1734466778415,2.54518,3929.0,3928.5,0.55]
[1734466778935,3.60075262,3929.0,3928.5,0.55]
[1734466779243,1.05557262,3929.0,3928.5,0.55]
[1734466779439,1.83507262,3929.1,3928.5,0.698493]
[1734466779776,4.38018262,3929.1,3928.5,0.698493]
[1734466779969,4.38018262,3929.1,3928.5,0.798493]
[1734466780164,1.05557262,3929.0,3928.5,0.798493]
[1734466780958,0.129865,3928.9,3928.5,0.798493]
[1734466782948,1.18543762,3928.9,3928.5,0.798493]
[1734466783170,1.18543762,3928.9,3928.5,0.65]
[1734466783605,1.18543762,3928.9,3928.5,0.1]
[1734466783745,7.48692033,3928.6,3928.5,0.1]
[1734466784082,8.29482033,3928.6,3928.5,0.1]
[1734466784404,9.90553815,3928.6,3928.5,0.1]
[1734466784564,9.90553815,3928.6,3928.0,0.1]
[1734466784565,2.54576,3928.1,3928.0,0.1]
[1734466784887,6.35372,3928.0,3927.9,1e-05]
[1734466785185,6.35385,3927.8,3927.7,1e-05]
[1734466785343,7.82829568,3927.8,3927.7,1e-05]
[1734466785548,9.79010181,3927.8,3927.7,1e-05]
[1734466786280,7.82829568,3927.8,3927.7,1e-05]
[1734466788488,10.47332496,3927.8,3927.7,1e-05]
[1734466790287,7.82829568,3927.8,3927.7,1e-05]
[1734466793270,10.47332496,3927.8,3927.7,1e-05]
[1734466793698,7.82829568,3927.8,3927.7,1e-05]
[1734466794295,9.94216867,3927.8,3927.7,1e-05]
[1734466797704,8.07789568,3927.8,3927.7,1e-05]
[1734466797905,9.66247232,3927.8,3927.7,1e-05]
[1734466798312,8.07789568,3927.8,3927.7,1e-05]
[1734466798973,9.66240623,3927.8,3927.7,1e-05]
[1734466800271,9.78696517,3927.8,3927.7,1e-05]
[1734466800700,8.97906517,3927.8,3927.7,1e-05]
[1734466804309,7.39474754,3927.8,3927.7,1e-05]
[1734466805210,0.37435186,3927.8,3927.7,1e-05]
[1734466805377,0.2496,3927.8,3927.7,1e-05]
[1734466810113,2.79555,3927.8,3927.7,1e-05]
[1734466810319,5.79555,3927.8,3927.7,1e-05]
[1734466810820,7.37986763,3927.8,3927.7,1e-05]
[1734466810995,7.26893209,3927.8,3927.7,1e-05]
[1734466811320,8.32555296,3927.8,3927.7,1e-05]
[1734466813006,7.26893209,3927.8,3927.7,1e-05]
[1734466813207,4.72298209,3927.8,3927.7,1e-05]
[1734466813407,0.2496,3927.8,3927.7,1e-05]
[1734466813621,5.79555,3927.8,3927.7,1e-05]
[1734466815204,0.2496,3927.8,3927.7,1e-05]
[1734466820290,2.79555,3927.8,3927.7,1e-05]
[1734466820546,5.79555,3927.8,3927.7,1e-05]
[1734466820826,6.98934446,3927.8,3927.7,1e-05]
[1734466821191,8.57366209,3927.8,3927.7,1e-05]
[1734466823225,6.98934446,3927.8,3927.7,1e-05]
[1734466824232,0.2496,3927.8,3927.7,1e-05]
[1734466824395,1.30781157,3927.8,3927.7,1e-05]
[1734466824599,0.2496,3927.8,3927.7,1e-05]
[1734466824841,3.85376157,3927.8,3927.7,1e-05]
[1734466825027,1.30781157,3927.8,3927.7,1e-05]
[1734466825231,0.2496,3927.8,3927.7,1e-05]
[1734466831544,1.30781157,3927.8,3927.7,1e-05]
[1734466831754,0.2496,3927.8,3927.7,1e-05]
[1734466833166,0.2496,3927.8,3927.7,0.82201]
[1734466834929,1.30781157,3927.8,3927.7,0.82201]
[1734466835230,1.30781157,3927.8,3927.7,1e-05]
[1734466836066,2.79555,3927.8,3927.7,1e-05]
[1734466836263,1.31039093,3927.8,3927.7,1e-05]
[1734466836464,0.2496,3927.8,3927.7,1e-05]
[1734466837174,1.31040546,3927.8,3927.7,1e-05]
[1734466837464,1.31042939,3927.8,3927.7,1e-05]
[1734466837665,3.85637939,3927.8,3927.7,1e-05]
[1734466837891,4.9753283,3927.8,3927.7,1e-05]
[1734466838096,3.38830178,3927.8,3927.7,1e-05]
[1734466838241,5.50217477,3927.8,3927.7,1e-05]
[1734466838595,3.38830178,3927.8,3927.7,1e-05]
[1734466840560,7.17090178,3927.8,3927.7,1e-05]
[1734466840736,9.82273913,3927.8,3927.7,1e-05]
[1734466840940,7.17090178,3927.8,3927.7,1e-05]
[1734466842070,8.06681364,3927.8,3927.7,1e-05]
[1734466842972,13.21450161,3927.8,3927.7,1e-05]
[1734466843470,13.2158111,3927.8,3927.7,1e-05]
[1734466843686,14.11172296,3927.8,3927.7,1e-05]
[1734466843888,10.92820865,3927.8,3927.7,1e-05]
[1734466844189,11.62819335,3927.8,3927.7,1e-05]
[1734466845775,11.75523411,3927.8,3927.7,1e-05]
[1734466846191,3.0,3926.5,3925.3,1.05969904]
[1734466846394,3.0,3926.5,3925.0,2.92029808]
[1734466846395,1.94180842,3925.6,3925.0,0.8009]
[1734466846688,2.5477,3925.1,3925.0,0.8009]
[1734466846891,1.06212892,3925.4,3924.1,0.7998]
[1734466847189,1.94180842,3924.8,3924.1,0.7998]
[1734466847353,2.54822,3924.4,3924.1,0.7998]
[1734466847557,3.61034892,3924.4,3924.1,0.7998]
[1734466847854,3.61034892,3924.4,3922.8,0.56784954]
[1734466847855,2.54843,3924.0,3923.4,0.7998]
[1734466848059,1.06212892,3924.3,3923.4,0.7998]
[1734466848255,2.03146999,3924.3,3923.4,0.7998]
[1734466848457,2.54841,3924.1,3923.4,0.7998]
[1734466848660,2.54857,3923.8,3922.3,1.01978]
[1734466848984,2.54857,3923.8,3923.0,0.7998]
[1734466849798,4.49022842,3924.0,3923.0,0.7998]
[1734466851058,4.49022842,3924.0,3923.0,1.81941]
[1734466851059,1.94180842,3924.0,3923.0,1.81941]
[1734466851598,1.94180842,3924.0,3923.0,0.7998]
[1734466852097,3.0,3923.8,3923.0,0.7998]
[1734466852798,3.0,3923.7,3923.0,0.7998]
[1734466853289,0.52803684,3923.9,3923.0,0.7998]
[1734466853497,3.0,3923.8,3923.0,0.7998]
[1734466854152,6.339,3923.4,3922.2,0.7998]
[1734466855018,6.889,3923.4,3922.0,0.1]
[1734466855660,2.54952,3922.3,3922.0,0.1]
[1734466856302,2.54965,3922.1,3922.0,0.1]
[1734466857123,0.44914584,3922.1,3922.0,0.1]
[1734466857322,2.54952,3922.3,3922.0,0.1]
[1734466857624,1.94180842,3922.4,3922.0,0.1]
[1734466857793,3.0,3922.7,3922.0,0.1]
[1734466857991,3.0,3922.9,3922.0,0.1]
[1734466858188,3.0,3922.9,3922.1,0.7998]
[1734466858398,0.82810884,3922.9,3922.1,0.7998]
[1734466858610,1.94180842,3923.2,3922.2,1.01982]
[1734466858811,2.67842455,3923.5,3922.1,0.7998]
[1734466858812,0.12966455,3923.5,3922.1,0.7998]
[1734466859122,0.12966455,3923.5,3922.7,0.7998]
[1734466860429,0.12966455,3923.5,3922.7,1.81949]
[1734466860609,0.12966455,3923.5,3922.8,1.01967]
[1734466860810,0.12966455,3923.5,3923.1,0.8001]
[1734466861011,2.54826,3924.3,3923.1,1.8197]
[1734466861321,2.54826,3924.3,3923.1,2.00167]
[1734466861529,1.94180842,3924.4,3923.1,2.00167]
[1734466861530,4.48996842,3924.4,3923.2,1.01957]
[1734466861718,4.48996842,3924.4,3923.1,0.98207]
[1734466861719,0.7881,3924.6,3923.5,0.752]
[1734466862031,2.54801,3924.7,3923.5,0.752]
[1734466862726,1.94180842,3924.9,3923.5,0.752]
[1734466862927,2.54818,3924.4,3923.5,0.752]
[1734466863225,2.54799,3924.7,3923.5,0.752]
[1734466863412,3.0,3924.6,3923.5,0.752]
[1734466863726,0.52506784,3924.8,3923.5,1.77149]
[1734466863930,0.12935227,3924.1,3923.5,0.752]
[1734466867431,0.12935227,3924.1,3923.5,0.929152]
[1734466868000,2.54816,3924.4,3923.5,0.752]
[1734466871109,4.018781,3924.5,3923.5,0.752]
[1734466871403,3.566881,3924.5,3923.5,0.752]
[1734466871729,0.7611,3925.0,3923.7,0.752]
[1734466871960,3.0,3924.9,3923.8,1.14959]
[1734466872165,2.5476,3925.3,3924.1,1.01931]
[1734466872338,3.30836,3925.8,3924.6,1.0192]
[1734466872660,3.30836,3925.8,3924.7,0.752]
[1734466872661,1.018677,3924.9,3924.7,0.752]
[1734466872813,2.54726,3925.8,3924.7,0.752]
[1734466873015,1.018487,3925.7,3924.7,0.752]
[1734466873351,0.7611,3926.2,3924.7,0.752]
[1734466873502,1.349233,3926.1,3924.7,0.929118]
[1734466873731,1.018432,3926.1,3925.1,0.752]
[1734466873928,2.547,3926.2,3925.1,0.752]
[1734466874129,3.565353,3926.2,3925.1,0.752]
[1734466874373,3.565353,3926.2,3925.1,1.77107]
[1734466874374,1.018353,3926.2,3925.1,1.77107]
[1734466874730,3.565373,3926.2,3925.1,1.77107]
[1734466874931,1.018353,3926.2,3925.1,0.929107]
[1734466875240,2.54683,3926.5,3925.4,1.019]
[1734466875441,2.54663,3926.8,3925.3,0.752]
[1734466875845,2.70290842,3926.9,3925.3,1.77101]
[1734466876244,5.70290842,3926.9,3925.5,0.752]
[1734466876452,2.54667,3926.7,3925.5,1.77097]
[1734466876652,3.0,3926.9,3925.5,1.948067]
[1734466876830,1.94180842,3926.9,3925.5,0.752]
[1734466877036,3.0,3926.8,3925.5,0.752]
[1734466877232,2.54696,3926.3,3925.5,0.752]
[1734466877978,2.54708,3926.1,3925.5,0.752]
[1734466878333,4.018235,3926.8,3925.5,0.752]
[1734466878535,2.54718,3926.0,3925.5,0.752]
[1734466878760,0.7611,3926.6,3925.5,0.752]
[1734466878761,2.54721,3925.9,3925.5,0.752]
[1734466880636,5.5469,3926.4,3925.5,0.752]
[1734466880837,2.54713,3926.0,3925.5,0.752]
[1734466881169,5.5469,3926.4,3925.5,0.752]
[1734466881170,2.54721,3925.9,3925.5,0.752]
[1734466882395,2.801931,3925.9,3925.5,0.752]
[1734466882576,0.254721,3925.9,3925.5,0.752]
[1734466882891,2.54706,3926.1,3925.5,0.752]
[1734466883091,2.5472,3925.9,3925.5,0.752]
[1734466883405,2.54706,3926.1,3925.5,0.752]
[1734466883552,2.54716,3926.0,3925.5,0.752]
[1734466883755,3.0,3926.4,3925.5,0.752]
[1734466884053,2.54719,3925.9,3925.5,0.752]
[1734466884672,2.54706,3926.1,3925.5,0.752]
[1734466884859,0.630789,3926.3,3925.5,0.752]
[1734466884860,3.177729,3926.3,3925.5,0.752]
[1734466885281,3.59600434,3926.7,3925.5,0.752]
[1734466885455,2.54707,3926.1,3925.5,0.752]
[1734466885657,2.54712,3926.0,3925.5,0.752]
[1734466886606,0.59600434,3926.7,3925.5,0.752]
[1734466886956,2.54682,3926.5,3925.5,0.752]
[1734466887274,2.54682,3926.5,3924.6,1.94180842]
[1734466887275,0.7611,3927.2,3925.9,0.752]
[1734466887449,0.7611,3927.2,3925.8,1.0189]
[1734466887450,2.54653,3927.0,3926.0,0.17709]
[1734466887786,2.54654,3926.9,3926.1,0.752]
[1734466887985,2.54642,3927.1,3926.1,0.752]
[1734466888206,1.018062,3927.2,3926.1,0.752]
[1734466888503,2.5463,3927.3,3926.3,0.752]
[1734466888716,3.564313,3927.3,3926.4,0.1302]
[1734466888928,3.564313,3927.3,3926.5,0.752]
[1734466889413,2.54635,3927.2,3926.5,0.752]
[1734466889908,4.018013,3927.3,3926.5,0.752]
[1734466890129,3.0,3927.3,3926.5,0.752]
[1734466890338,3.564223,3927.4,3926.5,0.99963957]
[1734466890642,0.2496,3927.8,3926.7,0.752]
[1734466890778,0.2496,3927.8,3926.9,0.752]
[1734466890979,0.2496,3927.8,3926.9,0.8822]
[1734466892077,2.54626,3927.4,3926.9,0.752]
[1734466892512,2.5461,3927.6,3926.9,0.752]
[1734466892682,3.0,3927.5,3926.9,0.752]
[1734466892883,0.1273467,3927.2,3926.9,0.752]
[1734466893429,0.2496,3927.8,3926.9,0.752]
[1734466893641,0.2496,3927.8,3926.6,1.94180842]
[1734466893642,0.2496,3927.8,3927.1,0.7667]
[1734466893780,0.2496,3927.8,3927.2,0.13167]
[1734466894225,0.24652336,3927.8,3927.1,0.7667]
[1734466894727,2.79249336,3927.8,3927.1,0.7667]
[1734466895725,2.54602,3927.7,3927.1,0.7667]
[1734466897113,0.37079073,3927.8,3927.1,0.7667]
[1734466897317,2.54626,3927.4,3927.1,0.7667]
[1734466897538,3.37079073,3927.8,3927.1,0.7667]
[1734466897746,0.37079073,3927.8,3927.1,0.7667]
[1734466898207,0.37079073,3927.8,3927.1,0.945233]
[1734466898561,0.37079073,3927.8,3927.1,0.7667]
[1734466899550,0.37079073,3927.8,3927.2,0.02546032]
[1734466899712,0.37079073,3927.8,3927.2,0.79216032]
[1734466900065,0.37079073,3927.8,3926.3,1.94180842]
[1734466900066,0.24652336,3927.8,3927.4,0.7667]
[1734466900212,0.24652336,3927.8,3927.3,1.5685]
[1734466900213,0.24652336,3927.8,3927.6,0.7667]
[1734466900516,0.24652336,3927.8,3927.7,1.000215]
[1734466901398,0.24652336,3927.8,3927.7,0.7667]
[1734466901703,0.24652336,3927.8,3927.7,1.3167]
[1734466901906,0.24652336,3927.8,3927.7,2.3351]
[1734466902995,0.24652336,3927.8,3927.7,1.3167]
[1734466904604,0.24652336,3927.8,3927.7,2.3351]
[1734466904950,0.24652336,3927.8,3927.7,2.56861]
[1734466907208,0.24652336,3927.8,3927.7,1.55021]
[1734466907372,0.24652336,3927.8,3927.7,0.7667]
[1734466909198,0.24652336,3927.8,3927.7,2.3351]
[1734466909729,0.24652336,3927.8,3927.7,1.3167]
[1734466910164,0.24652336,3927.8,3927.7,0.7667]
[1734466912165,0.24652336,3927.8,3926.9,0.8169]
[1734466912344,0.24652336,3927.8,3927.0,0.37773184]
[1734466913265,0.24652336,3927.8,3927.2,0.8169]
[1734466914342,0.26180336,3928.3,3927.2,0.8169]
[1734466915534,2.54581,3928.1,3927.2,0.8169]
[1734466916019,2.54582,3928.0,3927.2,0.8169]
[1734466917224,2.54593,3927.9,3927.2,0.8169]
[1734466917761,0.26180336,3928.3,3927.2,0.8169]
[1734466917917,2.54577,3928.1,3927.3,0.17446318]
[1734466918120,0.26180336,3928.3,3927.3,0.17446318]
[1734466918121,2.54583,3928.0,3927.3,0.17446318]
[1734466918319,0.26180336,3928.3,3927.3,0.17446318]
[1734466918659,2.5455,3928.5,3927.5,0.8169]
[1734466918951,2.54556,3928.4,3927.6,0.25598632]
[1734466921035,2.54565,3928.3,3927.6,0.25598632]
[1734466921240,0.12619195,3928.1,3927.6,0.25598632]
[1734466922125,0.93809195,3928.1,3927.5,0.8169]
[1734466922549,2.54595,3927.9,3927.5,0.8169]
[1734466922940,0.93809195,3928.1,3927.5,0.8169]
[1734466923272,1.94180842,3927.6,3925.5,1.94180842]
[1734466923585,1.94180842,3927.6,3926.0,0.7911]
[1734466923586,2.54656,3926.9,3926.0,0.7911]
[1734466923767,0.8119,3927.3,3926.0,0.7911]
[1734466923768,2.54661,3926.8,3926.0,0.7911]
[1734466924069,2.54667,3926.7,3926.0,0.7911]
[1734466924304,2.54634,3927.2,3926.0,0.7911]
[1734466924305,2.54647,3927.1,3926.0,0.7911]
[1734466924434,2.54647,3927.1,3924.6,0.25]
[1734466924435,0.8119,3926.5,3924.9,1.8102]
[1734466924633,2.54704,3926.2,3924.9,1.8102]
[1734466925068,2.54705,3926.1,3924.9,1.8102]
[1734466925974,2.54705,3926.1,3925.0,1.01909]
[1734466926177,2.54714,3926.0,3924.9,0.7911]
[1734466926395,2.54714,3926.0,3925.0,0.181025]
[1734466927340,2.54725,3925.8,3925.0,0.181025]
[1734466927538,2.54725,3925.8,3925.0,0.55]
[1734466928438,2.54699,3926.2,3925.0,0.55]
[1734466928633,5.54694,3926.3,3925.0,0.55]
[1734466928837,2.54712,3926.0,3925.0,0.55]
[1734466929270,5.54694,3926.3,3925.0,0.55]
[1734466929573,2.54709,3926.1,3925.0,0.786028]
[1734466931182,0.93541625,3926.3,3925.0,0.786028]
[1734466931469,3.93541625,3926.3,3925.0,0.786028]
[1734466931876,2.54721,3925.9,3925.0,0.786028]
[1734466933182,0.93541625,3926.3,3924.9,0.7911]
[1734466933183,3.93541625,3926.3,3924.9,0.7911]
[1734466933470,2.44739,3925.6,3924.9,0.7911]
[1734466933682,2.54748,3925.5,3924.9,0.7911]
[1734466934250,2.54756,3925.4,3924.9,0.7911]
[1734466934653,0.8119,3925.8,3924.9,0.7911]
[1734466934654,2.54737,3925.7,3924.9,0.7911]
[1734466935249,0.8119,3925.8,3924.9,0.7911]
[1734466935485,2.54741,3925.6,3924.9,0.7911]
[1734466935663,0.8119,3925.8,3924.9,0.7911]
[1734466935866,0.1263609,3925.7,3924.9,0.7911]
[1734466936173,0.1263609,3925.7,3925.1,0.7911]
[1734466936566,1.01832,3925.6,3925.1,0.7911]
[1734466936761,1.01832,3925.6,3925.1,0.972125]
[1734466937749,1.01832,3925.6,3925.1,0.7911]
[1734466937949,2.54751,3925.4,3924.9,0.7911]
[1734466938170,1.01832,3925.6,3924.9,0.7911]
[1734466938340,3.56572,3925.6,3924.9,0.7911]
[1734466939069,1.01832,3925.6,3924.5,0.7911]
[1734466939255,2.54753,3925.4,3924.5,0.7911]
[1734466939658,1.01832,3925.6,3924.5,0.7911]
[1734466939659,3.5657,3925.6,3924.5,0.7911]
[1734466939981,3.5657,3925.6,3923.9,1.56937]
[1734466939982,1.01832,3925.6,3924.8,0.7911]
[1734466940194,3.56575,3925.6,3924.8,0.7911]
[1734466940358,2.54749,3925.5,3924.8,0.7911]
[1734466940751,2.54751,3925.4,3924.8,0.7911]
[1734466941145,1.01832,3925.6,3924.8,0.7911]
[1734466941146,2.54757,3925.3,3924.8,0.7911]
[1734466941810,2.54745,3925.5,3924.8,0.7911]
[1734466941992,2.54745,3925.5,3924.1,0.8304]
[1734466941993,0.7702,3925.3,3924.1,0.8304]
[1734466942305,2.54777,3925.0,3924.1,0.8304]
[1734466942605,2.5479,3924.8,3924.1,0.8304]
[1734466943480,2.5479,3924.8,3923.7,1.01944]
[1734466943481,0.7702,3924.7,3923.7,1.01944]
[1734466943682,1.94180842,3924.4,3923.2,0.8304]
[1734466943875,2.54823,3924.3,3923.2,0.8304]
[1734466944074,2.54823,3924.3,3923.2,1.84997]
[1734466944277,1.10201,3924.7,3923.2,0.8304]
[1734466944278,4.10201,3924.7,3923.2,0.8304]
[1734466944484,4.10201,3924.7,3923.3,0.02548614]
[1734466944679,3.1284522,3925.1,3924.0,0.8304]
[1734466944910,2.6762122,3925.1,3924.0,0.8304]
[1734466945092,0.1284522,3925.1,3924.1,0.55]
[1734466945292,0.1284522,3925.1,3924.5,1.01922]
[1734466945493,0.1284522,3925.1,3924.6,0.8304]
[1734466945709,0.1284522,3925.1,3924.7,0.184962]
[1734466946278,0.1284522,3925.1,3924.6,0.8304]
[1734466947877,0.1284522,3925.1,3924.7,0.0254789]
[1734466948110,0.1284522,3925.1,3924.6,0.8304]
[1734466949704,0.1284522,3925.1,3924.7,0.1]
[1734466950509,2.54758,3925.3,3924.7,0.1]
[1734466951306,2.54778,3925.0,3924.7,0.1]
[1734466951513,2.5479,3924.8,3924.7,0.1]
[1734466952306,0.254778,3925.0,3924.7,0.1]
[1734466952512,2.54777,3925.0,3924.7,0.1]
[1734466952916,3.7702,3925.1,3924.7,0.1]
[1734466953078,0.7702,3925.1,3924.7,0.1]
[1734466953403,3.31797,3925.1,3924.7,0.1]
[1734466954413,3.56574,3925.6,3924.7,0.1]
[1734466954414,1.81002,3925.6,3924.7,0.1]
[1734466954627,4.3574,3925.6,3924.8,0.7501]
[1734466954919,1.81002,3925.6,3924.8,0.7501]
[1734466955089,2.54785,3924.9,3924.7,0.1]
[1734466955295,3.33955,3924.9,3924.7,0.1]
[1734466955491,2.5479,3924.8,3924.7,0.1]
[1734466956740,6.3396,3924.8,3924.7,0.1]
[1734466957616,0.7917,3924.5,3922.8,0.7501]
[1734466957815,0.7917,3924.5,3922.9,0.17698]
[1734466957816,3.0,3924.2,3922.9,0.17698]
[1734466958017,2.54857,3923.8,3922.8,0.7501]
[1734466958725,3.02524464,3924.4,3922.8,0.7501]
[1734466958726,2.39127864,3924.0,3922.8,0.7501]
[1734466958919,2.5487,3923.6,3922.8,0.7501]
[1734466959719,2.54862,3923.7,3922.8,0.7501]
[1734466960120,2.54868,3923.6,3922.8,0.7501]
[1734466961730,2.54868,3923.6,3922.8,0.8501]
[1734466961915,2.803548,3923.6,3922.8,0.8501]
[1734466962528,2.54894,3923.2,3922.8,0.1]
[1734466962847,2.54908,3923.0,3922.8,0.1]
[1734466963634,3.32323,3922.9,3922.8,0.1]
[1734466963948,6.32323,3922.9,3922.8,0.1]
[1734466964182,1.82761407,3923.3,3922.8,0.1]
[1734466964314,0.7741,3923.3,3922.8,0.1]
[1734466965570,2.54895,3923.2,3922.8,0.1]
[1734466967111,3.7741,3923.3,3922.8,0.1]
[1734466967381,3.0,3923.5,3922.8,0.1]
[1734466967522,2.803578,3923.6,3922.8,0.1]
[1734466967523,1.031268,3923.6,3922.8,0.1]
[1734466967939,2.54903,3923.1,3922.8,0.1]
[1734466968142,5.39127864,3923.5,3922.8,0.1]
[1734466968343,2.54888,3923.3,3922.8,0.1]
[1734466968614,2.54897,3923.2,3922.8,0.1]
[1734466969669,2.54907,3923.0,3922.8,0.1]
[1734466969967,3.64225466,3923.5,3922.8,0.1]
[1734466970179,2.54893,3923.3,3922.8,0.1]
[1734466970849,0.42222427,3923.4,3922.8,0.1]
[1734466971178,2.54894,3923.2,3922.8,0.1]
[1734466972649,0.42222427,3923.4,3922.8,0.1]
[1734466972945,2.54887,3923.3,3922.8,0.1]
[1734466973329,3.32007,3923.3,3922.8,0.1]
[1734466973917,4.22656516,3923.3,3922.8,0.1]
[1734466976369,3.45536516,3923.3,3922.8,0.1]
[1734466977766,2.54903,3923.1,3922.8,0.1]
[1734466979968,0.90649516,3923.3,3922.8,0.1]
[1734466980281,3.7764,3923.9,3922.8,0.1]
[1734466980484,3.7764,3923.9,3923.0,1.01962]
[1734466980485,3.0,3923.9,3923.0,1.01962]
[1734466980692,0.7764,3924.3,3923.0,0.7722]
[1734466981185,2.549,3923.1,3922.8,0.1]
[1734466981481,4.49419481,3923.6,3922.8,0.1]
[1734466981482,2.54913,3922.9,3922.8,0.1]
[1734466981884,1.0313,3923.0,3922.8,0.1]
[1734466982184,2.80397,3923.0,3922.8,0.1]
[1734466982490,0.2549,3923.0,3922.8,0.1]
[1734466983079,3.0,3923.1,3922.8,0.1]
[1734466983350,0.12496306,3923.4,3922.9,0.8203]
[1734466983351,3.0,3923.3,3922.9,0.8203]
[1734466983553,5.54889,3923.3,3922.9,0.8203]
[1734466984854,3.0,3923.3,3922.9,0.8203]
[1734466985054,3.12496306,3923.4,3922.9,0.8203]
[1734466985315,0.12496306,3923.4,3922.9,0.8203]
[1734466987687,2.67380306,3923.4,3922.9,0.8203]
[1734466987889,0.26738031,3923.3,3922.9,0.8203]
[1734466988887,0.26738031,3923.3,3922.8,0.1]
[1734466988888,3.26738031,3923.3,3922.8,0.1]
[1734466989075,6.35733,3922.9,3922.8,0.1]
[1734466989994,5.54913,3922.9,3922.8,0.1]
[1734466990331,2.54911,3923.0,3922.8,0.1]
[1734466990605,5.54913,3922.9,3922.8,0.1]
[1734466992820,2.54965,3922.1,3922.0,0.1]
[1734466996929,5.54965,3922.1,3922.0,0.1]
[1734466997589,3.15871682,3922.7,3922.0,0.1]
[1734466997590,1.05685771,3922.7,3922.0,0.1]
[1734466997791,1.05685771,3922.9,3922.0,0.1]
[1734466998092,1.05685771,3923.1,3922.1,0.8203]
[1734466998318,2.92087246,3923.0,3922.1,0.8203]
[1734466998530,1.05685771,3923.1,3922.1,0.8203]
[1734466998728,5.20977688,3923.3,3922.1,0.8203]
[1734466998729,3.60580771,3923.2,3922.1,0.8203]
[1734466999023,3.60566771,3923.4,3922.3,0.8203]
[1734466999637,2.54888,3923.3,3922.3,0.8203]
[1734466999851,2.54894,3923.2,3922.3,0.8203]
[1734467000395,3.60579771,3923.2,3922.3,0.8203]
[1734467000627,2.54901,3923.1,3922.3,0.8203]
[1734467002230,3.60586771,3923.1,3922.3,0.8203]
[1734467002406,2.54914,3922.9,3922.3,0.8203]
[1734467002931,2.54921,3922.8,3922.3,0.8203]
[1734467003426,1.05685771,3922.8,3922.3,0.8203]
[1734467003826,3.60599771,3922.9,3922.3,0.8203]
[1734467004237,1.05685771,3923.0,3922.3,0.8203]
[1734467004439,1.05685771,3922.9,3922.3,0.8203]
[1734467004746,2.54927,3922.7,3922.3,0.8203]
[1734467004909,1.05685771,3922.7,3922.3,0.8203]
[1734467005108,2.61511181,3922.9,3922.0,0.9203]
[1734467005109,2.54945,3922.4,3922.0,0.9203]
[1734467005642,1.05685771,3922.5,3922.0,0.9203]
[1734467006507,3.60626771,3922.5,3922.0,0.9203]
[1734467006706,2.54949,3922.4,3922.0,0.9203]
[1734467006906,2.54953,3922.3,3922.0,0.9203]
[1734467007110,3.60638771,3922.3,3922.0,0.9203]
[1734467007328,1.05685771,3922.3,3922.0,0.9203]
[1734467007931,1.05685771,3922.4,3922.0,0.9203]
[1734467008531,1.64636931,3922.4,3922.0,0.9203]
[1734467009045,1.05685771,3922.4,3922.0,0.9203]
[1734467009225,1.05685771,3922.6,3922.0,0.9203]
[1734467009544,3.0,3922.7,3922.0,0.9203]
[1734467009545,1.05685771,3922.7,3922.0,0.9203]
[1734467009709,4.05685771,3922.8,3922.0,0.9203]
[1734467009909,1.05685771,3922.7,3922.0,0.9203]
[1734467010112,5.20240375,3922.8,3922.0,0.9203]
[1734467010648,1.05685771,3922.7,3922.0,0.9203]
[1734467011227,1.05685771,3922.8,3922.1,0.8203]
[1734467011549,0.12730277,3923.1,3922.1,0.8203]